[Event "*** Titled Tuesday Blitz"]
[Site "Chess.com"]
[Date "2018.09.04"]
[Round "7"]
[White "oskariot"]
[Black "Aryangholami"]
[Result "1-0"]
[WhiteElo "2501"]
[BlackElo "2715"]
[TimeControl "180+2"]
[EndTime "15:10:14 PDT"]
[Termination "oskariot won by resignation"]

1. c4 {[%clk 0:02:57.6]} 1... Nf6 {[%clk 0:02:58]} 2. g3 {[%clk 0:02:57.2]} 2...
e5 {[%clk 0:02:56.1]} 3. Bg2 {[%clk 0:02:56.9]} 3... Nc6 {[%clk 0:02:58]} 4. Nc3
{[%clk 0:02:57.2]} 4... Bb4 {[%clk 0:02:58.6]} 5. Nd5 {[%clk 0:02:56.1]} 5...
O-O {[%clk 0:02:59]} 6. Nf3 {[%clk 0:02:56.5]} 6... Re8 {[%clk 0:02:51.3]} 7.
O-O {[%clk 0:02:47.8]} 7... Bf8 {[%clk 0:02:36.3]} 8. d3 {[%clk 0:02:23.7]} 8...
Nxd5 {[%clk 0:02:32.6]} 9. cxd5 {[%clk 0:02:25.6]} 9... Nb4 {[%clk 0:02:26]} 10.
Qb3 {[%clk 0:02:11.2]} 10... a5 {[%clk 0:02:26.1]} 11. a3 {[%clk 0:02:08.3]}
11... Na6 {[%clk 0:02:03.3]} 12. Bg5 {[%clk 0:02:02.1]} 12... Be7 {[%clk
0:01:58.5]} 13. Be3 {[%clk 0:01:59.3]} 13... d6 {[%clk 0:01:47.3]} 14. Rac1
{[%clk 0:01:47.2]} 14... f5 {[%clk 0:01:45]} 15. Nxe5 {[%clk 0:01:29.9]} 15...
dxe5 {[%clk 0:01:33.3]} 16. d6+ {[%clk 0:01:30.6]} 16... Kh8 {[%clk 0:01:32.2]}
17. dxe7 {[%clk 0:01:30.9]} 17... Qxe7 {[%clk 0:01:33.6]} 18. Qb5 {[%clk
0:01:17.3]} 18... c6 {[%clk 0:01:19.5]} 19. Qxa5 {[%clk 0:01:14.8]} 19... Be6
{[%clk 0:01:16.6]} 20. Qxe5 {[%clk 0:01:13.4]} 20... Qd7 {[%clk 0:01:14.9]} 21.
Qd4 {[%clk 0:01:12.7]} 21... Qf7 {[%clk 0:01:13.5]} 22. Qb6 {[%clk 0:01:08.9]}
22... Bd5 {[%clk 0:01:11.4]} 23. Bxd5 {[%clk 0:01:09.8]} 23... Qxd5 {[%clk
0:01:13.3]} 24. Qxb7 {[%clk 0:01:07.8]} 24... Reb8 {[%clk 0:01:12.8]} 25. Qxc6
{[%clk 0:01:06.4]} 25... Qxc6 {[%clk 0:01:09.3]} 26. Rxc6 {[%clk 0:01:07.4]}
26... Rxb2 {[%clk 0:01:11.2]} 27. Rfc1 {[%clk 0:01:06.9]} 27... h6 {[%clk
0:01:11.2]} 28. Rc8+ {[%clk 0:00:52.8]} 28... Rxc8 {[%clk 0:01:11]} 29. Rxc8+
{[%clk 0:00:53.9]} 29... Kh7 {[%clk 0:01:12.3]} 30. Rc6 {[%clk 0:00:54.2]} 30...
Nb8 {[%clk 0:01:10.1]} 31. Rb6 {[%clk 0:00:55.3]} 31... Rxb6 {[%clk 0:01:01.1]}
32. Bxb6 {[%clk 0:00:56]} 32... Nd7 {[%clk 0:01:03]} 33. Bd4 {[%clk 0:00:55.3]}
33... Kg6 {[%clk 0:01:03.7]} 34. a4 {[%clk 0:00:56.2]} 34... Kf7 {[%clk
0:01:04.4]} 35. a5 {[%clk 0:00:57.3]} 35... Nb8 {[%clk 0:01:05.6]} 36. f3 {[%clk
0:00:54.2]} 36... g5 {[%clk 0:01:06.4]} 37. e4 {[%clk 0:00:54.5]} 37... Ke6
{[%clk 0:01:06.7]} 38. Kf2 {[%clk 0:00:52]} 38... Nc6 {[%clk 0:01:07.4]} 39. Bb6
{[%clk 0:00:53]} 39... Nb4 {[%clk 0:01:07.7]} 40. Ke3 {[%clk 0:00:46.1]} 40...
h5 {[%clk 0:01:02.7]} 41. d4 {[%clk 0:00:44.3]} 41... g4 {[%clk 0:00:56.4]} 42.
fxg4 {[%clk 0:00:25.8]} 42... hxg4 {[%clk 0:00:55.3]} 43. Kf4 {[%clk 0:00:22.6]}
43... fxe4 {[%clk 0:00:54.1]} 44. Kxe4 {[%clk 0:00:22.8]} 44... Nd5 {[%clk
0:00:55.6]} 45. Bc5 {[%clk 0:00:21.4]} 45... Nc3+ {[%clk 0:00:52.6]} 46. Kf4
{[%clk 0:00:22.2]} 46... Nd5+ {[%clk 0:00:53.3]} 47. Kxg4 {[%clk 0:00:23.3]}
47... Nc7 {[%clk 0:00:55]} 48. h4 {[%clk 0:00:24.2]} 48... Kf6 {[%clk
0:00:53.9]} 49. h5 {[%clk 0:00:24.9]} 49... Nd5 {[%clk 0:00:52.7]} 50. a6 {[%clk
0:00:25.5]} 50... Nc7 {[%clk 0:00:53.1]} 51. a7 {[%clk 0:00:26.2]} 51... Na8
{[%clk 0:00:53]} 52. Bb4 {[%clk 0:00:25.5]} 1-0

[Event "*** Titled Tuesday Blitz"]
[Site "Chess.com"]
[Date "2018.09.04"]
[Round "7"]
[White "GadimbayliA"]
[Black "A-Fier"]
[Result "1/2-1/2"]
[WhiteElo "2680"]
[BlackElo "2757"]
[TimeControl "180+2"]
[EndTime "15:10:39 PDT"]
[Termination "Game drawn by repetition"]

1. e4 {[%clk 0:03:01.9]} 1... c5 {[%clk 0:02:54.9]} 2. Nf3 {[%clk 0:03:01.8]}
2... Nc6 {[%clk 0:02:55.8]} 3. Bb5 {[%clk 0:03:02.3]} 3... g6 {[%clk 0:02:56.4]}
4. Bxc6 {[%clk 0:03:03.4]} 4... bxc6 {[%clk 0:02:58.3]} 5. d4 {[%clk 0:03:03.8]}
5... cxd4 {[%clk 0:02:50.7]} 6. Qxd4 {[%clk 0:03:05.7]} 6... Nf6 {[%clk
0:02:51.7]} 7. e5 {[%clk 0:03:06.6]} 7... Nd5 {[%clk 0:02:52.8]} 8. c4 {[%clk
0:03:07.8]} 8... Nc7 {[%clk 0:02:53.7]} 9. O-O {[%clk 0:03:07.9]} 9... Bg7
{[%clk 0:02:52.6]} 10. Nc3 {[%clk 0:03:08.5]} 10... Ne6 {[%clk 0:02:53.9]} 11.
Qe4 {[%clk 0:03:04.2]} 11... O-O {[%clk 0:02:49.1]} 12. Qh4 {[%clk 0:03:04.6]}
12... f6 {[%clk 0:02:44.8]} 13. exf6 {[%clk 0:02:48.5]} 13... Bxf6 {[%clk
0:02:42.4]} 14. Ng5 {[%clk 0:02:29.4]} 14... Bxg5 {[%clk 0:02:04.6]} 15. Bxg5
{[%clk 0:02:31.2]} 15... Rf7 {[%clk 0:02:06.1]} 16. Rad1 {[%clk 0:02:19.7]}
16... d6 {[%clk 0:02:04.6]} 17. Bh6 {[%clk 0:02:02.4]} 17... c5 {[%clk
0:02:01.2]} 18. Rfe1 {[%clk 0:01:56.5]} 18... Nd4 {[%clk 0:01:59.6]} 19. Rxd4
{[%clk 0:00:45]} 19... cxd4 {[%clk 0:02:01.5]} 20. Nd5 {[%clk 0:00:44.9]} 20...
g5 {[%clk 0:01:06.2]} 21. Nxe7+ {[%clk 0:00:29.7]} 21... Rxe7 {[%clk 0:01:04.6]}
22. Qxg5+ {[%clk 0:00:25]} 22... Kf7 {[%clk 0:01:05.7]} 23. Qd5+ {[%clk
0:00:20.5]} 23... Re6 {[%clk 0:01:02.2]} 24. Re4 {[%clk 0:00:16.1]} 24... Rb8
{[%clk 0:00:45.6]} 25. b3 {[%clk 0:00:13.5]} 25... Qg8 {[%clk 0:00:41.9]} 26. f3
{[%clk 0:00:09]} 26... Ke7 {[%clk 0:00:42.1]} 27. Bg5+ {[%clk 0:00:08.7]} 27...
Kd7 {[%clk 0:00:43.1]} 28. f4 {[%clk 0:00:09.6]} 28... Kc7 {[%clk 0:00:41.4]}
29. f5 {[%clk 0:00:10.5]} 29... Qxg5 {[%clk 0:00:39.7]} 30. fxe6 {[%clk
0:00:11.8]} 30... Qxd5 {[%clk 0:00:39.1]} 31. cxd5 {[%clk 0:00:12.9]} 31... Bb7
{[%clk 0:00:41]} 32. Rxd4 {[%clk 0:00:13.9]} 32... Rf8 {[%clk 0:00:41.4]} 33.
Rc4+ {[%clk 0:00:13.7]} 33... Kb6 {[%clk 0:00:42.3]} 34. Rb4+ {[%clk 0:00:15.2]}
34... Kc7 {[%clk 0:00:41.8]} 35. Rc4+ {[%clk 0:00:16.5]} 35... Kd8 {[%clk
0:00:42.1]} 36. Rd4 {[%clk 0:00:17.2]} 36... Rf5 {[%clk 0:00:43.1]} 37. Rh4
{[%clk 0:00:18.2]} 37... h5 {[%clk 0:00:43.7]} 38. g4 {[%clk 0:00:17]} 38...
Rxd5 {[%clk 0:00:42.5]} 39. Rxh5 {[%clk 0:00:17.1]} 39... Rxh5 {[%clk
0:00:41.7]} 40. gxh5 {[%clk 0:00:18.9]} 40... Ke7 {[%clk 0:00:42.7]} 41. Kf2
{[%clk 0:00:19.1]} 41... Be4 {[%clk 0:00:43.8]} 42. Ke3 {[%clk 0:00:20.3]} 42...
Bf5 {[%clk 0:00:40]} 43. h6 {[%clk 0:00:20.1]} 43... Kxe6 {[%clk 0:00:38.2]} 44.
Kd4 {[%clk 0:00:21.5]} 44... Bh7 {[%clk 0:00:37.8]} 45. b4 {[%clk 0:00:22.8]}
45... Kd7 {[%clk 0:00:37.6]} 46. b5 {[%clk 0:00:23.1]} 46... Bg8 {[%clk
0:00:34.4]} 47. a4 {[%clk 0:00:24]} 47... Kc7 {[%clk 0:00:35.2]} 48. a5 {[%clk
0:00:25]} 48... Kb7 {[%clk 0:00:34.5]} 49. Ke4 {[%clk 0:00:25.8]} 49... Bh7+
{[%clk 0:00:31.1]} 50. Kd5 {[%clk 0:00:26.8]} 50... Kc7 {[%clk 0:00:32]} 51. h3
{[%clk 0:00:14.4]} 51... Bb1 {[%clk 0:00:32.1]} 52. Kd4 {[%clk 0:00:13.7]} 52...
Kd7 {[%clk 0:00:31]} 53. Kd5 {[%clk 0:00:14.2]} 53... Ba2+ {[%clk 0:00:31.8]}
54. Kd4 {[%clk 0:00:15.2]} 54... Bb1 {[%clk 0:00:33.7]} 55. Kd5 {[%clk
0:00:16.1]} 55... Ba2+ {[%clk 0:00:33.9]} 56. Kd4 {[%clk 0:00:17.3]} 56... Bg8
{[%clk 0:00:35.6]} 57. Ke4 {[%clk 0:00:18.5]} 57... Ke6 {[%clk 0:00:32.7]} 58.
Kd4 {[%clk 0:00:19.4]} 58... Kd7 {[%clk 0:00:33.5]} 59. Ke4 {[%clk 0:00:20.3]}
59... Bh7+ {[%clk 0:00:34.7]} 60. Kd4 {[%clk 0:00:21.5]} 60... Bb1 {[%clk
0:00:33.8]} 1/2-1/2

[Event "*** Titled Tuesday Blitz"]
[Site "Chess.com"]
[Date "2018.09.04"]
[Round "7"]
[White "GreatDamnedRedSpot"]
[Black "NemtsevIgor"]
[Result "1-0"]
[WhiteElo "2319"]
[BlackElo "2368"]
[TimeControl "180+2"]
[EndTime "15:10:47 PDT"]
[Termination "GreatDamnedRedSpot won by resignation"]

1. e4 {[%clk 0:03:01.9]} 1... c6 {[%clk 0:03:00.4]} 2. d4 {[%clk 0:03:02.2]}
2... d5 {[%clk 0:03:01.5]} 3. exd5 {[%clk 0:03:04.1]} 3... cxd5 {[%clk
0:03:02.6]} 4. c3 {[%clk 0:03:06]} 4... Nf6 {[%clk 0:03:03.6]} 5. Bd3 {[%clk
0:03:07.4]} 5... Bg4 {[%clk 0:03:03]} 6. Qb3 {[%clk 0:03:07.9]} 6... Qc8 {[%clk
0:03:00.5]} 7. h3 {[%clk 0:03:03.5]} 7... Bh5 {[%clk 0:02:56.6]} 8. Bg5 {[%clk
0:03:01.5]} 8... e6 {[%clk 0:02:45.8]} 9. Nd2 {[%clk 0:02:59]} 9... Bg6 {[%clk
0:02:43.4]} 10. Bxg6 {[%clk 0:02:30.6]} 10... hxg6 {[%clk 0:02:43.5]} 11. Ngf3
{[%clk 0:02:26]} 11... Nc6 {[%clk 0:02:43]} 12. O-O {[%clk 0:02:25.1]} 12... Bd6
{[%clk 0:02:42.5]} 13. Bxf6 {[%clk 0:02:12.7]} 13... gxf6 {[%clk 0:02:42.5]} 14.
c4 {[%clk 0:02:14.2]} 14... dxc4 {[%clk 0:02:22.8]} 15. Nxc4 {[%clk 0:02:14.9]}
15... Be7 {[%clk 0:02:23.9]} 16. d5 {[%clk 0:02:11]} 16... exd5 {[%clk
0:02:20.6]} 17. Ne3 {[%clk 0:02:12.2]} 17... d4 {[%clk 0:02:12]} 18. Nd5 {[%clk
0:02:13.3]} 18... O-O {[%clk 0:02:06.1]} 19. Rac1 {[%clk 0:02:07.8]} 19... Qd7
{[%clk 0:02:02.2]} 20. Rfd1 {[%clk 0:02:03.5]} 20... Rad8 {[%clk 0:01:55.9]} 21.
Nxd4 {[%clk 0:01:28]} 21... Nxd4 {[%clk 0:01:11.3]} 22. Rxd4 {[%clk 0:01:27.8]}
22... Kg7 {[%clk 0:01:08.8]} 23. Rcd1 {[%clk 0:01:25.4]} 23... Bc5 {[%clk
0:01:07.6]} 24. R4d3 {[%clk 0:01:21.7]} 24... Qc6 {[%clk 0:01:02.2]} 25. Qc3
{[%clk 0:00:37.5]} 25... Rd6 {[%clk 0:00:53.5]} 26. Ne3 {[%clk 0:00:24.3]} 26...
Rxd3 {[%clk 0:00:45]} 27. Qxd3 {[%clk 0:00:25.5]} 27... Re8 {[%clk 0:00:37.3]}
28. Nd5 {[%clk 0:00:18.5]} 28... Re5 {[%clk 0:00:36.3]} 29. a3 {[%clk
0:00:19.4]} 29... Rf5 {[%clk 0:00:35.9]} 30. Ne3 {[%clk 0:00:20.5]} 30... Rf4
{[%clk 0:00:35.6]} 31. Qd5 {[%clk 0:00:16.6]} 31... Bxe3 {[%clk 0:00:34.6]} 32.
fxe3 {[%clk 0:00:17.3]} 32... Rc4 {[%clk 0:00:29.3]} 33. Qxc6 {[%clk 0:00:18]}
33... Rxc6 {[%clk 0:00:30]} 34. Rd2 {[%clk 0:00:19]} 34... b6 {[%clk 0:00:30.1]}
35. Kf2 {[%clk 0:00:20.3]} 35... f5 {[%clk 0:00:30.2]} 36. Kf3 {[%clk
0:00:21.1]} 36... Kf6 {[%clk 0:00:30.9]} 37. e4 {[%clk 0:00:22.2]} 37... fxe4+
{[%clk 0:00:27.7]} 38. Kxe4 {[%clk 0:00:24.1]} 38... a5 {[%clk 0:00:28.4]} 39.
Kf3 {[%clk 0:00:22.2]} 39... Rc5 {[%clk 0:00:27.8]} 40. h4 {[%clk 0:00:19.8]}
40... Rb5 {[%clk 0:00:28.3]} 41. g3 {[%clk 0:00:17.8]} 41... Rb3+ {[%clk
0:00:28.9]} 42. Kg4 {[%clk 0:00:18.5]} 42... a4 {[%clk 0:00:30]} 43. Rf2+ {[%clk
0:00:18.1]} 43... Kg7 {[%clk 0:00:30.3]} 44. Rf4 {[%clk 0:00:16.6]} 44... b5
{[%clk 0:00:29.6]} 45. Rb4 {[%clk 0:00:18.1]} 45... Rxb4+ {[%clk 0:00:25.5]} 46.
axb4 {[%clk 0:00:20]} 46... f5+ {[%clk 0:00:26.8]} 47. Kg5 {[%clk 0:00:20.1]}
47... Kf7 {[%clk 0:00:27.8]} 48. h5 {[%clk 0:00:20.4]} 48... gxh5 {[%clk
0:00:27.2]} 49. Kxf5 {[%clk 0:00:21.9]} 49... Ke7 {[%clk 0:00:25.9]} 50. Kg5
{[%clk 0:00:22.9]} 50... Ke6 {[%clk 0:00:27.3]} 51. Kxh5 {[%clk 0:00:24.4]}
51... Kd5 {[%clk 0:00:28.7]} 52. g4 {[%clk 0:00:26.1]} 52... Kc4 {[%clk
0:00:30.6]} 53. g5 {[%clk 0:00:27.8]} 53... Kxb4 {[%clk 0:00:32.3]} 54. g6
{[%clk 0:00:29.5]} 54... Kb3 {[%clk 0:00:34]} 55. g7 {[%clk 0:00:31.3]} 55...
Kxb2 {[%clk 0:00:35.9]} 56. g8=Q {[%clk 0:00:33]} 56... a3 {[%clk 0:00:37.5]}
57. Qg7+ {[%clk 0:00:34.4]} 57... Kb1 {[%clk 0:00:37.7]} 58. Qg6+ {[%clk
0:00:34.9]} 58... Kb2 {[%clk 0:00:38.3]} 59. Qg5 {[%clk 0:00:35.9]} 59... Kc2
{[%clk 0:00:35.4]} 60. Qf5+ {[%clk 0:00:34.7]} 60... Kc1 {[%clk 0:00:33]} 61.
Qc5+ {[%clk 0:00:33.7]} 61... Kb2 {[%clk 0:00:30.2]} 62. Qxb5+ {[%clk
0:00:34.7]} 62... Kc2 {[%clk 0:00:31.5]} 63. Qc4+ {[%clk 0:00:34.1]} 63... Kb2
{[%clk 0:00:32.6]} 64. Qb4+ {[%clk 0:00:35.1]} 64... Ka2 {[%clk 0:00:33.1]} 65.
Kg5 {[%clk 0:00:35.1]} 65... Ka1 {[%clk 0:00:34]} 66. Qxa3+ {[%clk 0:00:36.3]}
1-0

[Event "*** Titled Tuesday Blitz"]
[Site "Chess.com"]
[Date "2018.09.04"]
[Round "7"]
[White "ahmadzada13"]
[Black "Nowaybacksasha"]
[Result "0-1"]
[WhiteElo "2645"]
[BlackElo "2818"]
[TimeControl "180+2"]
[EndTime "15:10:52 PDT"]
[Termination "Nowaybacksasha won by resignation"]

1. d4 {[%clk 0:03:01.9]} 1... Nf6 {[%clk 0:03:00.9]} 2. c4 {[%clk 0:03:01.4]}
2... g6 {[%clk 0:03:02.3]} 3. Nc3 {[%clk 0:03:01.9]} 3... d5 {[%clk 0:03:03.9]}
4. Nf3 {[%clk 0:03:00.5]} 4... Bg7 {[%clk 0:03:04.2]} 5. Bg5 {[%clk 0:03:01.4]}
5... dxc4 {[%clk 0:03:04.3]} 6. e4 {[%clk 0:02:46.2]} 6... c5 {[%clk 0:03:05.1]}
7. Bxc4 {[%clk 0:02:44.4]} 7... cxd4 {[%clk 0:02:55.2]} 8. Qxd4 {[%clk
0:02:42.2]} 8... Qxd4 {[%clk 0:02:51.3]} 9. Nxd4 {[%clk 0:02:43.5]} 9... Nxe4
{[%clk 0:02:46.6]} 10. Nxe4 {[%clk 0:02:45.2]} 10... Bxd4 {[%clk 0:02:46.9]} 11.
O-O-O {[%clk 0:02:42.2]} 11... Nc6 {[%clk 0:02:47.4]} 12. Bd5 {[%clk 0:02:36]}
12... Bg7 {[%clk 0:02:33.5]} 13. Rhe1 {[%clk 0:02:33.1]} 13... Ne5 {[%clk
0:01:28.9]} 14. h3 {[%clk 0:02:20]} 14... h6 {[%clk 0:01:15.3]} 15. Bf4 {[%clk
0:02:15.8]} 15... O-O {[%clk 0:00:27]} 16. Nc5 {[%clk 0:02:08.2]} 16... Nc6
{[%clk 0:00:07.4]} 17. Bxc6 {[%clk 0:02:02.1]} 17... bxc6 {[%clk 0:00:09.3]} 18.
Rxe7 {[%clk 0:02:03.3]} 18... Bf5 {[%clk 0:00:10.5]} 19. g4 {[%clk 0:01:56.9]}
19... Bc8 {[%clk 0:00:11.5]} 20. Bd6 {[%clk 0:01:52.8]} 20... Rd8 {[%clk
0:00:11.7]} 21. Rc7 {[%clk 0:01:45.6]} 21... Re8 {[%clk 0:00:11.5]} 22. b3
{[%clk 0:01:32.7]} 22... h5 {[%clk 0:00:12.4]} 23. f3 {[%clk 0:01:30.7]} 23...
Re2 {[%clk 0:00:06.9]} 24. Bf4 {[%clk 0:01:24.7]} 24... hxg4 {[%clk 0:00:06.2]}
25. fxg4 {[%clk 0:01:20.2]} 25... Be6 {[%clk 0:00:06.7]} 26. Nxe6 {[%clk
0:01:19.7]} 26... Rxe6 {[%clk 0:00:07.5]} 27. Rdd7 {[%clk 0:01:17.8]} 27... Rf6
{[%clk 0:00:08.7]} 28. Bg5 {[%clk 0:01:07.5]} 28... Rf2 {[%clk 0:00:09.5]} 29.
Bd2 {[%clk 0:01:04]} 29... a5 {[%clk 0:00:09.5]} 30. Ra7 {[%clk 0:00:56.8]}
30... Re8 {[%clk 0:00:05.9]} 31. Rxa5 {[%clk 0:00:54.3]} 31... Ree2 {[%clk
0:00:06.5]} 32. Rc5 {[%clk 0:00:46.3]} 32... Re6 {[%clk 0:00:03.8]} 33. Rd8+
{[%clk 0:00:44.7]} 33... Kh7 {[%clk 0:00:04.5]} 34. Rd7 {[%clk 0:00:44.2]} 34...
Kg8 {[%clk 0:00:04.8]} 35. Rc4 {[%clk 0:00:37.4]} 35... Rh2 {[%clk 0:00:04.5]}
36. a4 {[%clk 0:00:35.5]} 36... Rxh3 {[%clk 0:00:05.2]} 37. a5 {[%clk
0:00:35.7]} 37... Rxb3 {[%clk 0:00:05.9]} 38. a6 {[%clk 0:00:27.8]} 38... Ra3
{[%clk 0:00:07]} 39. a7 {[%clk 0:00:25.7]} 39... Re8 {[%clk 0:00:05]} 40. Rb4
{[%clk 0:00:17.4]} 40... Be5 {[%clk 0:00:04.9]} 41. Rbb7 {[%clk 0:00:15]} 41...
Ra1+ {[%clk 0:00:04.2]} 42. Kc2 {[%clk 0:00:13.3]} 42... Ra2+ {[%clk 0:00:05.8]}
43. Kd3 {[%clk 0:00:11.3]} 43... c5 {[%clk 0:00:05.8]} 44. Bc1 {[%clk
0:00:08.1]} 44... c4+ {[%clk 0:00:06.5]} 45. Kxc4 {[%clk 0:00:07.8]} 45... Rc2+
{[%clk 0:00:07.5]} 46. Kd3 {[%clk 0:00:07.1]} 46... Rxc1 {[%clk 0:00:08.8]} 47.
Re7 {[%clk 0:00:05.7]} 47... Rd8+ {[%clk 0:00:06.5]} 48. Ke2 {[%clk 0:00:05.4]}
48... Bh8 {[%clk 0:00:06.1]} 49. Rb8 {[%clk 0:00:04.8]} 49... Rcc8 {[%clk
0:00:07.2]} 50. Rxc8 {[%clk 0:00:04.3]} 50... Rxc8 {[%clk 0:00:08.2]} 51. Rb7
{[%clk 0:00:05.7]} 51... Be5 {[%clk 0:00:09.3]} 52. Kf3 {[%clk 0:00:06.6]} 52...
Kg7 {[%clk 0:00:09.5]} 53. Ke4 {[%clk 0:00:07.7]} 53... Bh2 {[%clk 0:00:11]} 54.
Kd5 {[%clk 0:00:08.2]} 54... Ra8 {[%clk 0:00:12.2]} 55. Kc6 {[%clk 0:00:08.7]}
55... Bg1 {[%clk 0:00:13.4]} 0-1

[Event "*** Titled Tuesday Blitz"]
[Site "Chess.com"]
[Date "2018.09.04"]
[Round "7"]
[White "VerdeNotte"]
[Black "AlexanderL"]
[Result "1/2-1/2"]
[WhiteElo "2826"]
[BlackElo "2828"]
[TimeControl "180+2"]
[EndTime "15:11:01 PDT"]
[Termination "Game drawn by repetition"]

1. e4 {[%clk 0:03:01.9]} 1... e5 {[%clk 0:03:00.6]} 2. Nf3 {[%clk 0:03:02.8]}
2... Nf6 {[%clk 0:03:01.6]} 3. Nxe5 {[%clk 0:03:01.3]} 3... d6 {[%clk
0:03:01.6]} 4. Nf3 {[%clk 0:03:02.1]} 4... Nxe4 {[%clk 0:03:02.6]} 5. c4 {[%clk
0:03:03.3]} 5... Nc6 {[%clk 0:03:03.4]} 6. Nc3 {[%clk 0:03:04]} 6... Nxc3 {[%clk
0:03:04.1]} 7. dxc3 {[%clk 0:03:04.8]} 7... g6 {[%clk 0:03:05.3]} 8. Bg5 {[%clk
0:03:04.9]} 8... Be7 {[%clk 0:03:06.2]} 9. Bh6 {[%clk 0:03:05.8]} 9... Bf8
{[%clk 0:03:07.3]} 10. Qd2 {[%clk 0:03:00.6]} 10... Bg4 {[%clk 0:02:33.8]} 11.
Bxf8 {[%clk 0:02:54.6]} 11... Kxf8 {[%clk 0:02:32.8]} 12. Be2 {[%clk 0:02:44.1]}
12... Kg7 {[%clk 0:02:27]} 13. O-O {[%clk 0:02:35.4]} 13... Re8 {[%clk
0:02:27.2]} 14. h3 {[%clk 0:02:34.2]} 14... Bd7 {[%clk 0:02:23]} 15. Nd4 {[%clk
0:02:31.6]} 15... Nxd4 {[%clk 0:02:18.3]} 16. cxd4 {[%clk 0:02:32.4]} 16... Qf6
{[%clk 0:02:14.8]} 17. Bf3 {[%clk 0:02:28.1]} 17... c6 {[%clk 0:01:52.6]} 18.
Qc3 {[%clk 0:02:28]} 18... Re7 {[%clk 0:01:45]} 19. Rac1 {[%clk 0:02:28.6]}
19... Rae8 {[%clk 0:01:42.5]} 20. Rfd1 {[%clk 0:02:27.5]} 20... Bf5 {[%clk
0:01:35.9]} 21. d5 {[%clk 0:02:11.3]} 21... Qxc3 {[%clk 0:01:36.1]} 22. Rxc3
{[%clk 0:02:11.9]} 22... c5 {[%clk 0:01:37]} 23. Kf1 {[%clk 0:02:01.3]} 23... h5
{[%clk 0:01:22.8]} 24. a3 {[%clk 0:01:58.6]} 24... a5 {[%clk 0:01:15.7]} 25. b3
{[%clk 0:01:59.4]} 25... Kh6 {[%clk 0:01:09.8]} 26. Rdc1 {[%clk 0:01:59.5]}
26... Kg5 {[%clk 0:00:59.8]} 27. Kg1 {[%clk 0:01:53.7]} 27... h4 {[%clk
0:01:00.1]} 28. Kh2 {[%clk 0:01:48.4]} 28... Re1 {[%clk 0:00:59.9]} 29. g3
{[%clk 0:01:47.4]} 29... Rxc1 {[%clk 0:00:50.8]} 30. Rxc1 {[%clk 0:01:48.1]}
30... hxg3+ {[%clk 0:00:51.7]} 31. Kxg3 {[%clk 0:01:48.8]} 31... Rh8 {[%clk
0:00:52.1]} 32. Bg2 {[%clk 0:01:47.8]} 32... Rh4 {[%clk 0:00:43.3]} 33. Re1
{[%clk 0:01:33]} 33... Rd4 {[%clk 0:00:43.6]} 34. Bf1 {[%clk 0:01:30.5]} 34...
Kf6 {[%clk 0:00:37.7]} 35. Re3 {[%clk 0:01:05.5]} 35... Rd2 {[%clk 0:00:34.5]}
36. Be2 {[%clk 0:01:01.2]} 36... Rb2 {[%clk 0:00:33.4]} 37. Bf3 {[%clk
0:00:44.9]} 37... Bb1 {[%clk 0:00:27.6]} 38. Bd1 {[%clk 0:00:39.9]} 38... Bc2
{[%clk 0:00:15.1]} 39. Bxc2 {[%clk 0:00:37.3]} 39... Rxc2 {[%clk 0:00:17]} 40.
a4 {[%clk 0:00:36]} 40... Rd2 {[%clk 0:00:18.2]} 41. h4 {[%clk 0:00:33.8]} 41...
Rb2 {[%clk 0:00:19.3]} 42. f3 {[%clk 0:00:33.7]} 42... b6 {[%clk 0:00:20.2]} 43.
Kg4 {[%clk 0:00:27]} 43... Rg2+ {[%clk 0:00:20.4]} 44. Kf4 {[%clk 0:00:28]}
44... Rg1 {[%clk 0:00:19.2]} 45. Re8 {[%clk 0:00:22.6]} 45... Rb1 {[%clk
0:00:20]} 46. Re3 {[%clk 0:00:22.8]} 46... Rh1 {[%clk 0:00:20.5]} 47. Kg3 {[%clk
0:00:23.8]} 47... Rg1+ {[%clk 0:00:20.4]} 48. Kf4 {[%clk 0:00:23.7]} 48... Rb1
{[%clk 0:00:21.4]} 49. Kg4 {[%clk 0:00:23.7]} 49... Rb2 {[%clk 0:00:20.9]} 50.
Kf4 {[%clk 0:00:23.8]} 50... Rg2 {[%clk 0:00:21.4]} 51. Re8 {[%clk 0:00:24.4]}
51... Rb2 {[%clk 0:00:22.3]} 52. Re3 {[%clk 0:00:25.2]} 52... Kg7 {[%clk
0:00:23.2]} 53. Kg5 {[%clk 0:00:23.5]} 53... Rg2+ {[%clk 0:00:23.2]} 54. Kf4
{[%clk 0:00:24.6]} 54... Kf8 {[%clk 0:00:24.4]} 55. Re1 {[%clk 0:00:20.9]} 55...
Rb2 {[%clk 0:00:23.5]} 56. Re3 {[%clk 0:00:21.9]} 56... Rb1 {[%clk 0:00:22.5]}
57. Kg5 {[%clk 0:00:22.3]} 57... Kg7 {[%clk 0:00:23]} 58. Kf4 {[%clk 0:00:22.4]}
58... Kh6 {[%clk 0:00:20.7]} 59. Kg4 {[%clk 0:00:20.2]} 59... Rg1+ {[%clk
0:00:20.6]} 60. Kf4 {[%clk 0:00:21.4]} 60... Rb1 {[%clk 0:00:19.8]} 61. Kg4
{[%clk 0:00:22.4]} 61... Rg1+ {[%clk 0:00:15.4]} 62. Kf4 {[%clk 0:00:23.5]}
62... Rb1 {[%clk 0:00:12.9]} 63. Kg4 {[%clk 0:00:24]} 1/2-1/2